bitfinex-derivatives/quotes_BTCF0:USTF0_20260131
["timestamp","ask_amount","ask_price","bid_price","bid_amount"]
[1769902090236,0.26090902,78931.0,78916.0,0.10264]
[1769902090438,0.26090902,78931.0,78922.0,0.12667287]
[1769902090642,0.26090902,78931.0,78916.0,0.10264]
[1769902091046,0.26090902,78931.0,78923.0,0.12670497]
[1769902091245,0.26090902,78931.0,78923.0,0.01416866]
[1769902091447,0.26090902,78931.0,78924.0,0.12670497]
[1769902091745,0.26090902,78931.0,78916.0,0.115327]
[1769902091945,0.26090902,78931.0,78916.0,0.10264]
[1769902092141,0.26090902,78931.0,78917.0,0.12669935]
[1769902093444,0.26090902,78931.0,78917.0,0.14061528]
[1769902094441,0.26090902,78931.0,78917.0,0.01391593]
[1769902094743,0.26090902,78927.0,78915.0,0.00945803]
[1769902094945,0.26090902,78927.0,78909.0,0.012688]
[1769902095143,0.26090902,78927.0,78909.0,0.13939217]
[1769902095343,0.26090902,78927.0,78905.0,0.02214703]
[1769902095743,0.00010929,78926.0,78910.0,0.1267138]
[1769902095943,0.00010929,78926.0,78905.0,0.00945803]
[1769902096145,0.00010929,78926.0,78906.0,0.00945803]
[1769902096445,0.00010929,78926.0,78917.0,0.00945803]
[1769902096646,0.00010929,78926.0,78916.0,0.012687]
[1769902096945,0.00010929,78926.0,78916.0,0.02214503]
[1769902097142,0.00010929,78926.0,78912.0,0.012688]
[1769902097946,0.00010929,78926.0,78913.0,0.12671219]
[1769902099051,0.00010929,78926.0,78906.0,0.00945803]
[1769902099247,0.26090902,78916.0,78906.0,0.00945803]
[1769902099442,0.26090902,78916.0,78907.0,0.13939939]
[1769902100543,0.26090902,78916.0,78907.0,0.012688]
[1769902101046,0.26090902,78916.0,78905.0,0.01401754]
[1769902101241,0.26090902,78916.0,78905.0,0.012689]
[1769902101446,0.26090902,78916.0,78903.0,0.10268]
[1769902101850,0.26090902,78916.0,78904.0,0.12672584]
[1769902102549,0.26090902,78916.0,78904.0,0.14071344]
[1769902103947,0.00954945,78915.0,78904.0,0.14071344]
[1769902104244,0.26090902,78916.0,78904.0,0.0139876]
[1769902104448,0.26090902,78916.0,78902.0,0.012689]
[1769902105344,0.26090902,78916.0,78903.0,0.12672665]
[1769902106550,0.26090902,78916.0,78903.0,0.14064198]
[1769902107051,0.27045847,78916.0,78900.0,0.10272]
[1769902107257,0.012687,78915.0,78900.0,0.10272]
[1769902107548,0.012688,78913.0,78900.0,0.10272]
[1769902107742,0.00954945,78914.0,78900.0,0.10272]
[1769902107948,0.02223645,78914.0,78900.0,0.10272]
[1769902108147,0.012687,78917.0,78900.0,0.10272]
[1769902108347,0.26090902,78930.0,78910.0,0.00945803]
[1769902108551,0.27359402,78930.0,78910.0,0.00945803]
[1769902108754,0.012685,78928.0,78910.0,0.00945803]
[1769902109051,0.012685,78928.0,78907.0,0.012688]
[1769902109253,0.26090902,78930.0,78908.0,0.00945803]
[1769902109452,0.26090902,78930.0,78912.0,0.00945803]
[1769902109650,0.10272,78932.0,78912.0,0.00945803]
[1769902109854,0.012684,78937.0,78913.0,0.00945803]
[1769902110049,0.012683,78940.0,78914.0,0.02214503]
[1769902110254,0.00954945,78939.0,78914.0,0.02214503]
[1769902110451,0.00954945,78934.0,78909.0,0.10272]
[1769902110649,0.00954945,78934.0,78915.0,0.1267154]
[1769902110850,0.00954945,78934.0,78911.0,0.012688]
[1769902111049,0.00010382,78933.0,78915.0,0.012687]
[1769902111254,0.00954945,78932.0,78912.0,0.012688]
[1769902111455,0.00954945,78932.0,78909.0,0.115408]
[1769902111753,0.00954945,78932.0,78913.0,0.12670738]
[1769902111958,0.00954945,78930.0,78913.0,0.12670738]
[1769902112146,0.00954945,78921.0,78900.0,0.01426496]
[1769902112457,0.00010382,78933.0,78893.0,0.012691]
[1769902112458,0.02223645,78917.0,78893.0,0.012691]
[1769902112646,0.00954945,78917.0,78898.0,0.01417102]
[1769902112850,0.00954945,78917.0,78900.0,0.12672584]
[1769902113052,0.00954945,78917.0,78898.0,0.01417102]
[1769902113757,0.10272,78919.0,78898.0,0.01417102]
[1769902114259,0.11226945,78919.0,78898.0,0.01417102]
[1769902114755,0.10272,78919.0,78899.0,0.00945803]
[1769902114948,0.10272,78922.0,78909.0,0.00945803]
[1769902115154,0.10272,78931.0,78909.0,0.00945803]
[1769902115355,0.10272,78931.0,78910.0,0.012688]
[1769902115650,0.10272,78931.0,78910.0,0.13941705]
[1769902115850,0.01278782,78933.0,78911.0,0.00945803]
[1769902116050,0.00010382,78933.0,78917.0,0.012687]
[1769902116254,0.00010382,78933.0,78917.0,0.02214503]
[1769902116460,0.10272,78954.0,78932.0,0.012684]
[1769902116656,0.1724234,78953.0,78932.0,0.012684]
[1769902116854,0.1724234,78952.0,78932.0,0.012684]
[1769902117058,0.1724234,78951.0,78932.0,0.012684]
[1769902117361,7.269e-05,78950.0,78933.0,0.12670256]
[1769902117558,0.01268,78962.0,78934.0,0.00947111]
[1769902117862,0.10272,78966.0,78945.0,0.012682]
[1769902118056,0.16664062,78965.0,78945.0,0.10272]
[1769902118260,0.10272,78969.0,78946.0,0.00947111]
[1769902118454,0.00909589,78967.0,78946.0,0.12667608]
[1769902118662,0.02177589,78963.0,78946.0,0.12667608]
[1769902118858,0.01268,78960.0,78945.0,0.10272]
[1769902119161,0.02177789,78950.0,78933.0,0.10272]
[1769902119366,0.012682,78945.0,78933.0,0.10272]
[1769902119573,0.00909589,78948.0,78933.0,0.10272]
[1769902119762,0.10272,78950.0,78933.0,0.10272]
[1769902120066,0.012683,78941.0,78910.0,0.00947111]
[1769902120367,0.012682,78949.0,78923.0,0.00947111]
[1769902120573,0.012682,78947.0,78923.0,0.00947111]
[1769902120769,0.012682,78947.0,78921.0,0.10272]
[1769902121261,0.10272,78948.0,78924.0,0.012686]
[1769902121669,0.115402,78948.0,78924.0,0.012686]
[1769902121861,0.012682,78945.0,78921.0,0.10272]
[1769902122263,0.10272,78948.0,78922.0,0.1393709]
[1769902122461,0.10272,78948.0,78923.0,0.00990196]
[1769902122763,0.10272,78948.0,78925.0,0.012686]
[1769902122971,0.10272,78948.0,78927.0,0.012685]
[1769902123269,0.10272,78947.0,78929.0,0.012685]
[1769902123569,0.10272,78947.0,78933.0,0.02258596]
[1769902124165,0.00963705,78946.0,78918.0,0.10272]
[1769902124370,0.012684,78937.0,78908.0,0.11262196]
[1769902124665,0.012683,78942.0,78918.0,0.012687]
[1769902124870,0.012683,78942.0,78916.0,0.00990196]
[1769902125066,0.012683,78943.0,78919.0,0.12669132]
[1769902125367,0.012684,78935.0,78908.0,0.10272]
[1769902125669,0.012684,78933.0,78909.0,0.13937932]
[1769902125866,0.10272,78932.0,78909.0,0.13937932]
[1769902126067,0.012685,78929.0,78909.0,0.12669132]
[1769902126373,0.012685,78927.0,78908.0,0.10372]
[1769902126571,0.012686,78925.0,78908.0,0.10372]
[1769902126870,0.012686,78925.0,78908.0,0.10272]
[1769902128069,0.012686,78923.0,78908.0,0.10272]
[1769902128275,0.12504305,78923.0,78908.0,0.10272]
[1769902128477,0.00963705,78922.0,78899.0,0.01269]
[1769902128774,0.00963705,78920.0,78899.0,0.13940781]
[1769902129073,0.012687,78917.0,78899.0,0.12671781]
[1769902129269,0.012687,78917.0,78898.0,0.01417102]
[1769902129466,0.012687,78916.0,78898.0,0.00014998]
[1769902131367,0.10272,78923.0,78898.0,0.01005194]
[1769902131676,0.00963705,78943.0,78909.0,0.00990196]
[1769902131869,0.12504005,78943.0,78915.0,0.012687]
[1769902132077,0.115403,78943.0,78917.0,0.02258896]
[1769902132272,0.115403,78943.0,78918.0,0.00990196]
[1769902132474,0.115403,78943.0,78919.0,0.012686]
[1769902132777,0.10272,78943.0,78919.0,0.012686]
[1769902133283,0.10272,78943.0,78920.0,0.12669373]
[1769902133779,0.115403,78943.0,78920.0,0.12669373]
[1769902134170,0.115403,78943.0,78918.0,0.00990196]
[1769902134373,0.012682,78947.0,78919.0,0.12669213]
[1769902134574,0.012682,78948.0,78920.0,0.012686]
[1769902134774,0.02231905,78948.0,78920.0,0.012686]
[1769902135175,0.012681,78952.0,78923.0,0.00990196]
[1769902135376,0.10272,78951.0,78926.0,0.012685]
[1769902135583,0.00963705,78956.0,78928.0,0.012685]
[1769902135778,0.00963705,78954.0,78928.0,0.012685]
[1769902135972,0.00963705,78953.0,78928.0,0.012685]
[1769902136678,0.00963705,78951.0,78924.0,0.012686]
[1769902137082,0.00963705,78951.0,78927.0,0.012685]
[1769902137677,0.10272,78950.0,78927.0,0.012685]
[1769902137881,0.10272,78950.0,78923.0,0.11262196]
[1769902138284,0.10272,78950.0,78924.0,0.13658205]
[1769902138478,0.10272,78950.0,78928.0,0.012685]
[1769902139085,0.10272,78950.0,78929.0,0.1266833]
[1769902139284,0.115402,78950.0,78929.0,0.1266833]
[1769902139787,0.115402,78950.0,78924.0,0.02258796]
[1769902139788,0.012682,78948.0,78924.0,0.02258796]
[1769902140086,0.00963705,78943.0,78918.0,0.012687]
[1769902140586,0.00963705,78943.0,78924.0,0.12667929]
[1769902140789,0.00963705,78943.0,78919.0,0.10272]
[1769902140790,0.012683,78942.0,78920.0,0.012686]
[1769902140983,0.012683,78940.0,78919.0,0.10272]
[1769902141193,0.012684,78936.0,78919.0,0.10272]
[1769902141483,0.00963705,78933.0,78910.0,0.012688]
[1769902141681,0.012685,78930.0,78907.0,0.012688]
[1769902141883,0.11235705,78929.0,78912.0,0.12669855]
[1769902142079,0.00963705,78928.0,78907.0,0.012688]
[1769902142386,0.00963705,78922.0,78898.0,0.00014998]
[1769902142686,0.02232305,78922.0,78899.0,0.12669855]
[1769902142882,0.012686,78920.0,78899.0,0.12669855]
[1769902143085,0.012687,78915.0,78898.0,0.00014998]
[1769902143384,0.10272,78914.0,78898.0,0.00014998]
[1769902144083,0.00963705,78910.0,78896.0,0.02994062]
[1769902144387,0.00963705,78910.0,78885.0,0.012692]
[1769902144686,0.00963705,78910.0,78885.0,0.02822149]
[1769902145090,0.00963705,78910.0,78888.0,0.012692]
[1769902145388,0.10272,78909.0,78886.0,0.12674672]
[1769902145587,0.10272,78909.0,78885.0,0.01552949]
[1769902145888,0.10272,78909.0,78884.0,0.012692]
[1769902145889,0.11235705,78909.0,78887.0,0.12674672]
[1769902146090,0.012689,78904.0,78882.0,0.10272]
[1769902146289,0.012689,78904.0,78881.0,0.00990196]
[1769902146290,0.00963705,78900.0,78875.0,0.012693]
[1769902146488,0.10272,78899.0,78875.0,0.012693]
[1769902146689,0.10272,78899.0,78878.0,0.012693]
[1769902146982,0.10272,78899.0,78872.0,0.10272]
[1769902146983,0.10272,78899.0,78874.0,0.012694]
[1769902147184,0.10272,78899.0,78878.0,0.012693]
[1769902147688,0.10272,78899.0,78875.0,0.012694]
[1769902148186,0.10272,78899.0,78875.0,0.13945518]
[1769902148382,0.10272,78899.0,78875.0,0.15576481]
[1769902148891,0.10272,78899.0,78864.0,0.00014544]
[1769902148892,0.00977399,78894.0,78865.0,0.00988205]
[1769902149391,0.00013262,78898.0,78883.0,0.012692]
[1769902149588,0.10272,78897.0,78880.0,0.012693]
[1769902149889,0.10272,78897.0,78884.0,0.00988205]
[1769902150090,0.00977399,78912.0,78873.0,0.10272]
[1769902150091,0.012688,78911.0,78887.0,0.012692]
[1769902150291,0.10272,78910.0,78895.0,0.01269]
[1769902150492,0.012685,78926.0,78900.0,0.02257205]
[1769902150686,0.10272,78925.0,78900.0,0.02257205]
[1769902150882,0.00977399,78928.0,78900.0,0.00988205]
[1769902151085,0.10272,78927.0,78902.0,0.00988205]
[1769902151393,0.10272,78927.0,78909.0,0.02257005]
[1769902151690,0.10272,78927.0,78905.0,0.10272]
[1769902151891,0.012685,78931.0,78907.0,0.012688]
[1769902152190,0.012684,78934.0,78910.0,0.012688]
[1769902152590,0.012684,78937.0,78910.0,0.00988205]
[1769902152789,0.10272,78941.0,78915.0,0.00988205]
[1769902152988,0.10272,78941.0,78916.0,0.00988205]
[1769902153290,0.00977399,78945.0,78916.0,0.00988205]
[1769902153486,0.10272,78944.0,78922.0,0.02256805]
[1769902153691,0.10272,78943.0,78923.0,0.00988205]
[1769902154291,0.10272,78943.0,78927.0,0.012685]
[1769902154486,0.012681,78952.0,78925.0,0.10272]
[1769902154693,0.10272,78946.0,78925.0,0.10272]
[1769902154893,0.10272,78946.0,78926.0,0.12668651]
[1769902157988,0.00977399,78945.0,78926.0,0.12668651]
[1769902158188,0.00977399,78942.0,78918.0,0.012687]
[1769902158498,0.10272,78946.0,78922.0,0.012686]
[1769902159190,0.10272,78946.0,78923.0,0.12669453]
[1769902159696,0.10272,78946.0,78927.0,0.012685]
[1769902160296,0.11249399,78946.0,78924.0,0.012686]
[1769902160599,0.11249399,78946.0,78926.0,0.012685]
[1769902161198,0.00977399,78945.0,78926.0,0.012685]
[1769902161498,0.10272,78946.0,78926.0,0.012685]
[1769902162195,0.10272,78946.0,78923.0,0.00988205]
[1769902162401,0.10272,78946.0,78928.0,0.00988205]
[1769902162800,0.10272,78946.0,78930.0,0.012685]
[1769902163595,0.10272,78946.0,78928.0,0.00988205]
[1769902163799,0.10272,78961.0,78945.0,0.012682]
[1769902164597,0.10272,78961.0,78945.0,0.01588356]
[1769902164898,0.10272,78961.0,78944.0,0.012682]
[1769902165100,0.00977399,78976.0,78951.0,0.012681]
[1769902165402,0.00977399,78974.0,78951.0,0.012681]
[1769902165703,0.001,78961.0,78948.0,0.115402]
[1769902166105,0.115398,78973.0,78950.0,0.012682]
[1769902166397,0.115398,78973.0,78949.0,0.012682]
[1769902166602,0.115398,78973.0,78951.0,0.012681]
[1769902166800,0.115398,78973.0,78946.0,0.00988205]
[1769902166801,0.10272,78973.0,78946.0,0.00988205]
[1769902166997,0.10272,78973.0,78955.0,0.012681]
[1769902167199,0.10272,78973.0,78957.0,0.01268]
[1769902167598,0.10272,78973.0,78956.0,0.24204579]
[1769902167796,0.02245099,78981.0,78956.0,0.115401]
[1769902168105,0.001,78973.0,78956.0,0.115401]
[1769902168304,0.001,78973.0,78960.0,0.01268]
[1769902168502,0.001,78973.0,78961.0,0.00988205]
[1769902168705,0.10272,78982.0,78961.0,0.00988205]
[1769902169001,0.10272,78982.0,78963.0,0.00988205]
[1769902169204,0.11249399,78994.0,78972.0,0.012678]
[1769902169405,0.012671,79015.0,78976.0,0.012677]
[1769902169406,0.00977399,79003.0,78976.0,0.012677]
[1769902169604,0.00977399,79000.0,78974.0,0.012678]
[1769902169804,0.02244799,78997.0,78973.0,0.12663517]
[1769902170003,0.10268,79003.0,78974.0,0.00988205]
[1769902170204,0.10268,79003.0,78980.0,0.00988205]
[1769902170606,0.115353,79003.0,78980.0,0.00988205]
[1769902170808,0.00977399,79006.0,78980.0,0.11256205]
[1769902171107,0.00977399,79006.0,78982.0,0.012676]
[1769902171505,0.012673,79002.0,78980.0,0.11256205]
[1769902171806,0.26095125,79000.0,78981.0,0.012677]
[1769902172009,0.26095125,79000.0,78982.0,0.00988205]
[1769902172806,0.26095125,79000.0,78983.0,0.012676]
[1769902173204,0.26095125,79000.0,78986.0,0.00988205]
[1769902173403,0.26095125,79000.0,78985.0,0.012676]
[1769902173404,0.26095125,79000.0,78987.0,0.012676]
[1769902173601,0.26095125,79000.0,78984.0,0.012676]
[1769902173798,0.00977399,78998.0,78973.0,0.012678]
[1769902173998,0.00977399,78996.0,78973.0,0.012678]
[1769902174203,0.00977399,78996.0,78968.0,0.12659269]
[1769902174511,0.00977399,78995.0,78969.0,0.012678]
[1769902174905,0.00977399,78995.0,78971.0,0.012678]
[1769902175401,0.00977399,78995.0,78972.0,0.12661112]
[1769902175606,0.02244799,78995.0,78972.0,0.12661112]
[1769902175808,0.26095125,79000.0,78973.0,0.00988205]
[1769902176111,0.26095125,79000.0,78976.0,0.00988205]
[1769902176312,0.26095125,79000.0,78983.0,0.012676]
[1769902176614,0.26095125,79000.0,78987.0,0.012676]
[1769902177808,0.26095125,79000.0,78989.0,0.012675]
[1769902178509,0.26095125,79000.0,78982.0,0.10268]
[1769902178510,0.0093881,78998.0,78982.0,0.10268]
[1769902178704,0.012674,78995.0,78982.0,0.10268]
[1769902179103,0.0093881,78997.0,78982.0,0.10268]
[1769902179308,0.0093881,78995.0,78982.0,0.10268]
[1769902179711,0.0220631,78994.0,78982.0,0.10268]
[1769902179905,0.0093881,78991.0,78958.0,0.10264]
[1769902180206,0.10264,78993.0,78958.0,0.10264]
[1769902180207,0.012677,78979.0,78962.0,0.1266007]
[1769902180409,0.012677,78977.0,78962.0,0.1266007]
[1769902180613,0.0093881,78979.0,78958.0,0.10264]
[1769902180813,0.0093881,78977.0,78958.0,0.10264]
[1769902181315,0.26095125,78968.0,78958.0,0.10264]
[1769902181609,0.012671,79017.0,78989.0,0.012675]
[1769902181815,0.10264,79016.0,78991.0,0.012675]
[1769902182108,0.10264,79016.0,78995.0,0.012674]
[1769902182309,0.10264,79016.0,78990.0,0.10264]
[1769902182707,0.10264,79016.0,78997.0,0.012674]
[1769902182908,0.10264,79016.0,79000.0,0.012673]
[1769902183713,0.26095125,79020.0,79008.0,0.012672]
[1769902185418,0.26095125,79020.0,79005.0,0.012673]
[1769902185716,0.26095125,79020.0,79009.0,0.12655985]
[1769902186116,0.26095125,79020.0,79000.0,0.10264]
[1769902186311,0.26095125,79020.0,79008.0,0.012672]
[1769902186507,0.26095125,79020.0,79005.0,0.012673]
[1769902187016,0.00967364,79019.0,79002.0,0.012673]
[1769902187815,0.00967364,79019.0,79000.0,0.10264]
[1769902188214,0.00967364,79019.0,79001.0,0.12656545]
[1769902188614,0.00967364,79019.0,79000.0,0.10264]
[1769902188817,0.26095125,79020.0,79004.0,0.012673]
[1769902189011,0.26095125,79020.0,79001.0,0.13923845]
[1769902189210,0.26095125,79020.0,79001.0,0.012673]
[1769902189411,0.26095125,79020.0,79002.0,0.12656625]
[1769902189814,0.00967364,79019.0,79000.0,0.10264]
[1769902190214,0.00967364,79019.0,79001.0,0.12656465]
[1769902190822,0.00967364,79019.0,78986.0,0.10264]
[1769902191118,0.00967364,79017.0,78991.0,0.12656625]
[1769902191318,0.00967364,79015.0,78992.0,0.012675]
[1769902191514,0.00967364,79000.0,78986.0,0.10264]
[1769902192012,0.00967364,79000.0,78987.0,0.12656625]
[1769902192207,0.02234764,78996.0,78980.0,0.10264]
[1769902192411,0.26095125,78990.0,78980.0,0.10264]
[1769902193418,0.26095125,78990.0,78983.0,0.012676]
[1769902194015,0.26095125,79010.0,78985.0,0.00978113]
[1769902194209,0.00967364,79008.0,78984.0,0.12660391]
[1769902194409,0.27062489,78995.0,78967.0,0.00978113]
[1769902194613,0.00976619,78994.0,78970.0,0.012678]
[1769902194815,0.00976619,78994.0,78972.0,0.012678]
[1769902195216,0.02234864,78993.0,78969.0,0.012678]
[1769902195618,0.00967364,78993.0,78970.0,0.012678]
[1769902195913,9.255e-05,78994.0,78968.0,0.00978113]
[1769902196113,9.255e-05,78994.0,78981.0,0.012677]
[1769902196319,9.255e-05,78994.0,78972.0,0.00978113]
[1769902196320,9.255e-05,78994.0,78983.0,0.012676]
[1769902196515,9.255e-05,78994.0,78984.0,0.012676]
[1769902197314,9.255e-05,78994.0,78981.0,0.012676]
[1769902200324,9.255e-05,78994.0,78976.0,0.10264]
[1769902200519,0.26095125,78986.0,78976.0,0.10264]
[1769902200924,0.26095125,78986.0,78971.0,0.012678]
[1769902201119,0.26095125,78986.0,78970.0,0.012678]
[1769902201421,9.255e-05,78994.0,78981.0,0.012677]
[1769902201621,9.255e-05,78994.0,78974.0,0.00978113]
[1769902201828,0.26095125,78990.0,78975.0,0.012678]
[1769902202022,0.00967364,78989.0,78971.0,0.13928031]
[1769902202219,0.26095125,78990.0,78964.0,0.012679]
[1769902202220,0.00967364,78986.0,78964.0,0.012679]
[1769902202421,0.26095125,78974.0,78955.0,0.115321]
[1769902202615,0.26095125,78974.0,78955.0,0.10264]
[1769902202822,0.26095125,78974.0,78959.0,0.01268]
[1769902203324,0.26095125,78974.0,78955.0,0.10264]
[1769902203619,9.255e-05,78994.0,78976.0,0.00978113]
[1769902204026,0.26095125,79000.0,78987.0,0.00978113]
[1769902204330,0.26095125,79000.0,78988.0,0.115315]
[1769902204520,0.26095125,79000.0,78984.0,0.10264]
[1769902204726,0.26095125,79000.0,78988.0,0.12663918]
[1769902204923,0.012674,78999.0,78984.0,0.10264]
[1769902205118,0.00967364,78999.0,78984.0,0.10264]
[1769902205324,0.26095125,79000.0,78985.0,0.12659509]
[1769902205622,0.26095125,79000.0,78978.0,0.012677]
[1769902205826,0.26095125,79000.0,78976.0,0.001]
[1769902206033,0.012674,78998.0,78976.0,0.001]
[1769902206530,0.26095125,78986.0,78967.0,0.012679]
[1769902206918,0.26095125,78986.0,78971.0,0.12659429]
[1769902207222,0.00906233,78985.0,78967.0,0.012679]
[1769902207621,0.00906233,78985.0,78968.0,0.12661994]
[1769902207827,0.02173833,78985.0,78961.0,0.10264]
[1769902208334,0.02173833,78985.0,78946.0,0.00010539]
[1769902208335,0.26095125,78971.0,78965.0,0.12661994]
[1769902208524,0.26095125,78971.0,78953.0,0.10264]
[1769902208826,0.26095125,78971.0,78954.0,0.012681]
[1769902209526,0.26095125,78971.0,78955.0,0.12664319]
[1769902209827,0.26095125,78971.0,78956.0,0.012681]
[1769902210422,0.26095125,78971.0,78957.0,0.12664159]
[1769902212925,0.26095125,78971.0,78953.0,0.10264]
[1769902213329,0.26095125,78971.0,78954.0,0.012681]
[1769902213524,0.26095125,78971.0,78953.0,0.10264]
[1769902213731,0.00906233,78970.0,78947.0,0.012682]
[1769902214028,0.26095125,78960.0,78947.0,0.012682]
[1769902215225,0.00906233,78959.0,78946.0,0.00010539]
[1769902215425,0.26095125,78960.0,78946.0,0.00010539]
[1769902215824,0.27363125,78960.0,78946.0,0.00010539]
[1769902216328,0.26095125,78960.0,78946.0,0.00010539]
[1769902218728,0.10264,78964.0,78953.0,0.012681]
[1769902219432,0.10264,78964.0,78954.0,0.12665763]
[1769902219725,0.10264,78964.0,78952.0,0.00939582]
[1769902220230,0.26095125,78970.0,78952.0,0.13604382]
[1769902220431,0.26095125,78970.0,78952.0,0.00939582]
[1769902220631,0.26095125,78970.0,78954.0,0.012681]
[1769902220934,0.26095125,78970.0,78950.0,0.115361]
[1769902221231,0.26095125,78970.0,78955.0,0.12664319]
[1769902221629,0.26095125,78970.0,78952.0,0.012681]
[1769902221829,0.26095125,78970.0,78953.0,0.12664319]
[1769902222031,0.26095125,78970.0,78954.0,0.012681]
[1769902222228,0.00906233,78990.0,78957.0,0.00939582]
[1769902222423,0.00906233,78979.0,78950.0,0.10268]
[1769902222625,0.26095125,78960.0,78950.0,0.115361]
[1769902222931,0.26095125,78960.0,78950.0,0.10268]
[1769902225231,0.27001358,78960.0,78945.0,0.01597898]
[1769902226930,0.11174233,78959.0,78941.0,0.115363]
[1769902227132,0.00906233,78958.0,78941.0,0.10268]
[1769902228135,0.00906233,78956.0,78941.0,0.11991918]
[1769902228333,0.00906233,78950.0,78932.0,0.10268]
[1769902228935,0.26095125,78942.0,78932.0,0.10268]
[1769902229133,0.26095125,78942.0,78923.0,0.10268]
[1769902229531,0.00906233,78941.0,78923.0,0.10268]
[1769902229842,0.012684,78933.0,78917.0,0.00010332]
[1769902230037,0.26095125,78930.0,78917.0,0.00010332]
[1769902231535,0.00906233,78931.0,78917.0,0.00010332]
[1769902231736,0.00906233,78929.0,78906.0,0.012688]
[1769902231938,0.00012765,78932.0,78914.0,0.00939582]
[1769902232143,0.10280765,78932.0,78918.0,0.12670417]
[1769902232344,0.10280765,78932.0,78914.0,0.02208282]
[1769902232540,0.00012765,78932.0,78926.0,0.012685]
[1769902232838,0.11174233,78954.0,78924.0,0.00939582]
[1769902233036,0.11174233,78954.0,78926.0,0.00939582]
[1769902233237,0.11174233,78954.0,78930.0,0.012685]
[1769902233439,0.11174233,78954.0,78926.0,0.00939582]
[1769902233641,0.11174233,78954.0,78925.0,0.10268]
[1769902233642,9.28e-05,78953.0,78937.0,0.012684]
[1769902233946,9.28e-05,78953.0,78938.0,0.00939582]
[1769902234142,9.28e-05,78953.0,78939.0,0.012683]
[1769902234345,0.012679,78964.0,78940.0,0.00939582]
[1769902234747,0.012679,78964.0,78941.0,0.12667046]
[1769902235046,0.012679,78964.0,78941.0,0.13606628]
[1769902235548,0.00906233,78980.0,78943.0,0.00939582]
[1769902235743,0.00906233,78978.0,78943.0,0.00939582]
[1769902235943,0.012678,78974.0,78948.0,0.012682]
[1769902236250,0.02174033,78974.0,78949.0,0.10268]
[1769902236749,0.02174033,78974.0,78950.0,0.12664399]
[1769902236947,0.00928907,78973.0,78950.0,0.12664399]
[1769902237146,0.00928907,78964.0,78949.0,0.10268]
[1769902238143,0.00928907,78958.0,78937.0,0.012684]
[1769902238450,0.00928907,78958.0,78936.0,0.10268]
[1769902238451,0.00928907,78950.0,78927.0,0.13933701]
[1769902238650,0.012682,78947.0,78927.0,0.12665201]
[1769902238951,0.012682,78947.0,78926.0,0.012685]
[1769902238952,0.11196907,78946.0,78926.0,0.012685]
[1769902239245,0.00928907,78946.0,78924.0,0.1266833]
[1769902239451,0.00928907,78946.0,78930.0,0.012685]
[1769902239748,0.00928907,78946.0,78929.0,0.012685]
[1769902240047,0.11196907,78946.0,78929.0,0.012685]
[1769902240249,0.11196907,78946.0,78926.0,0.012685]
[1769902240849,0.12465107,78946.0,78926.0,0.012685]
[1769902241254,0.00928907,78945.0,78926.0,0.012685]
[1769902241548,0.10268,78946.0,78930.0,0.012685]
[1769902241747,0.10268,78946.0,78927.0,0.1266849]
[1769902242054,0.00909595,78945.0,78923.0,0.10268]
[1769902242252,0.10268,78946.0,78924.0,0.00914478]
[1769902242551,0.10268,78946.0,78931.0,0.012685]
[1769902242954,0.10268,78946.0,78928.0,0.012685]
[1769902243157,0.10268,78946.0,78925.0,0.012686]
[1769902243452,0.115362,78946.0,78925.0,0.12668089]
[1769902244250,0.00909595,78948.0,78925.0,0.12668089]
[1769902244647,0.00909595,78948.0,78923.0,0.10268]
[1769902244842,0.00909595,78949.0,78924.0,0.13937171]
[1769902245045,0.012682,78947.0,78924.0,0.13937171]
[1769902245342,0.10268,78968.0,78927.0,0.00914478]
[1769902245542,0.37244876,78989.0,78924.0,0.12668571]
[1769902245543,0.00909595,78972.0,78931.0,0.00914478]
[1769902245743,0.00909595,78972.0,78946.0,0.00914478]
[1769902246048,0.10268,78980.0,78941.0,0.012683]
[1769902246049,0.10268,78980.0,78958.0,0.01268]
[1769902246244,0.10268,78980.0,78965.0,0.012679]
[1769902246452,0.10268,78980.0,78965.0,0.02182378]
[1769902246650,0.346635,78993.0,78971.0,0.00914478]
[1769902246651,0.10268,78991.0,78971.0,0.00914478]
[1769902246842,0.10268,78991.0,78977.0,0.012677]
[1769902247043,0.10268,78991.0,78976.0,0.012677]
[1769902247942,0.11177595,78991.0,78975.0,0.10268]
[1769902248146,0.00909595,78998.0,78975.0,0.10268]
[1769902248345,0.10268,79004.0,78977.0,0.012677]
[1769902248551,0.15363822,79003.0,78977.0,0.012677]
[1769902248751,1.02708,79016.0,78975.0,0.10268]
[1769902248752,0.00909595,79013.0,78983.0,0.012676]
[1769902249055,0.00909595,79011.0,78982.0,0.012676]
[1769902249251,0.25492611,79010.0,78986.0,0.02182078]
[1769902249455,0.10268,79010.0,78986.0,0.02182078]
[1769902249852,0.10268,79010.0,78991.0,0.012675]
[1769902250255,0.10268,79010.0,78991.0,0.02181978]
[1769902250558,0.00909595,79009.0,78992.0,0.12658548]
[1769902250858,0.00909595,79007.0,78985.0,0.10268]
[1769902252163,0.00909595,79000.0,78985.0,0.10268]
[1769902252459,0.00909595,78999.0,78978.0,0.10268]
[1769902252754,0.00909595,78996.0,78978.0,0.10268]
[1769902254164,0.02176995,78996.0,78978.0,0.10268]
[1769902254654,0.00909595,78988.0,78964.0,0.012679]
[1769902254855,0.012677,78979.0,78958.0,0.10268]
[1769902255056,0.012677,78977.0,78958.0,0.1208332]
[1769902255359,0.10268,78976.0,78958.0,0.1208332]
[1769902255556,0.09880085,78976.0,78958.0,0.12997798]
[1769902255757,0.10268,78993.0,78966.0,0.12661994]
[1769902255958,0.00909595,78992.0,78966.0,0.12661994]
[1769902256262,0.012675,78991.0,78967.0,0.012679]
[1769902256463,0.012677,78982.0,78968.0,0.10268]
[1769902256755,0.012677,78980.0,78968.0,0.10268]
[1769902257254,0.012678,78975.0,78968.0,0.10268]
[1769902257655,0.012678,78972.0,78958.0,0.0181532]
[1769902257858,0.012678,78972.0,78955.0,0.10268]
[1769902258357,0.012678,78972.0,78956.0,0.12663838]
[1769902258562,0.00014798,78971.0,78956.0,0.12663838]
[1769902258862,0.01282598,78971.0,78956.0,0.12663838]
[1769902259062,0.01282598,78971.0,78955.0,0.10268]
[1769902259859,0.012679,78968.0,78955.0,0.09794214]
[1769902260059,0.012679,78966.0,78946.0,0.012682]